{"text_format":"1","workbook":"xlsx","n_sheets":3,"sheets":["boodschappen","materialen","printblad"],"not_rendered":{"charts":0,"images":1,"macros":1,"external_links":0,"defined_names":1,"comments":0,"pivot_tables":0},"unopened":[],"bounds":{"document_bytes":16777216,"sheet_cells":100000,"rows_first":2000,"rows_last":500,"rows_between":2000,"halvings":0,"cell_chars":16384,"cell_head_chars":4096},"cells_cut":0,"cells_raw":0,"read":"whole","date_system":"1900"}

{"sheet":"boodschappen","index":0,"n_rows":37,"n_cols":11,"rows_kept":37,"cut":false,"hidden":false,"merged":[[2,3,2,4],[3,3,3,4],[27,2,27,4],[5,2,5,4],[7,2,7,4],[17,8,17,10],[30,2,30,4],[5,8,5,10],[7,8,7,10],[13,8,13,10]]}
[]
[]
[null,null,"Kandidaatnaam: "]
[null,null,"Kandidaatnummer: "]
[]
[null,null,"boodschappenlijst ",null,null,null,null,null,"boodschappenlijst (vervolg)"]
[null,null,"aantal","eenheid","artikel ",null,null,null,"aantal","eenheid","artikel "]
[null,null,"groente",null,null,null,null,null,"vlees en vleeswaren"]
[null,null,null,"bosje (5 stuks)","bosuitjes ",null,null,null,null,"pakje (150 g)","kipfilet broodbeleg"]
[null,null,null,"bak (10 stuks)","cherrytomaatjes",null,null,null,null,"stuk (100 g)","kipfilet gerookt"]
[null,null,null,"tros (6 stuks)","cherrytomaatjes ",null,null,null,null,"stuk (180 g)","kipfilet rauw"]
[null,null,null,"krop ","ijsbergsla ",null,null,null,null,"stuk (400 g)","varkenshaas"]
[null,null,null,"bol","knoflook",null,null,null,null,"stuk (200 g)","biefstuk"]
[null,null,null,"net (4 bollen)","knoflook ",null,null,null,"pasta, rijst"]
[null,null,null,"stuk ","komkommer",null,null,null,null,"doos (500 g)","pandanrijst"]
[null,null,null,"bosje (5 stuks)","lente-uitjes",null,null,null,null,"doos (500 g)","witte rijst"]
[null,null,null,"blik (200 g)","maïs",null,null,null,null,"doos (500 g)","zilvervliesrijst"]
[null,null,null,"kolf ","maïs",null,null,null,"overig"]
[null,null,null,"stuk ","paprika rood",null,null,null,null,"pak (250 g)","basterdsuiker lichtbruin"]
[null,null,null,"stuk","prei",null,null,null,null,"pak (250 g)","basterdsuiker donkerbruin"]
[null,null,null,"zak (3 stuks)","prei",null,null,null,null,"pak (250 g)","basterdsuiker wit"]
[null,null,null,"stuk","rode peper",null,null,null,null,"pak (200 g)","bloem"]
[null,null,null,"bak (500 g)","tomaat (gewone)",null,null,null,null,"fles (500 ml)","chilisaus"]
[null,null,null,"stuk ","tomaat (gewone)",null,null,null,null,"fles (150 ml)","citroensap "]
[null,null,null,"stuk ","ui ",null,null,null,null,"potje (50 g)","citroenschil "]
[null,null,null,"net (500 g)","ui",null,null,null,null,"doos (6 stuks)","eieren"]
[null,null,null,"stuk ","ui rood",null,null,null,null,"doos (10 stuks)","eieren"]
[null,null,"fruit",null,null,null,null,null,null,"zakje (50 g)","kokos geraspt "]
[null,null,null,"stuk ","avocado",null,null,null,null,"stuk ","kokosnoot"]
[null,null,null,"net (3 stuks)","citroen ",null,null,null,null,"pak (250 g)","kristalsuiker bruin"]
[null,null,"kruiden",null,null,null,null,null,null,"pak (250 g)","kristalsuiker wit"]
[null,null,null,"busje","cayennepeper",null,null,null,null,"fles (500 ml)","olijfolie"]
[null,null,null,"stuk (100 g)","gember",null,null,null,null,"zakje (200 g)","pinda’s gezouten"]
[null,null,null,"busje","gemberpoeder",null,null,null,null,"zakje (200 g)","pinda’s ongezouten"]
[null,null,null,"busje","knoflookpoeder",null,null,null,null,"flesje (200 ml)","sojasaus donker"]
[null,null,null,"busje","peper zwart",null,null,null,null,"flesje (200 ml)","sojasaus licht "]
[null,null,null,"potje","sambal oelek",null,null,null,null,"busje","zout"]

{"sheet":"materialen","index":1,"n_rows":48,"n_cols":4,"rows_kept":48,"cut":false,"hidden":false,"merged":[[45,2,45,3],[46,2,46,3],[47,2,47,3],[40,2,40,3],[41,2,41,3],[42,2,42,3],[43,2,43,3],[44,2,44,3],[35,2,35,3],[36,2,36,3],[37,2,37,3],[38,2,38,3],[39,2,39,3],[30,2,30,3],[31,2,31,3],[32,2,32,3],[33,2,33,3],[34,2,34,3],[25,2,25,3],[26,2,26,3],[27,2,27,3],[28,2,28,3],[29,2,29,3],[20,2,20,3],[21,2,21,3],[22,2,22,3],[23,2,23,3],[24,2,24,3],[15,4,18,4],[15,6,18,6],[29,4,32,4],[29,6,32,6],[8,2,8,3],[9,2,9,3],[10,2,10,3],[11,2,11,3],[12,2,12,3],[13,2,13,3],[14,2,14,3],[15,2,15,3],[16,2,16,3],[17,2,17,3],[18,2,18,3],[19,2,19,3],[38,4,47,4],[38,6,47,6],[20,4,23,4],[20,6,23,6],[25,4,27,4],[25,6,27,6],[34,4,36,4],[34,6,36,6],[9,4,13,4],[9,6,13,6],[5,2,5,6],[2,3,2,6],[3,3,3,6],[7,2,7,6]]}
[]
[]
[null,null,"Kandidaatnaam:",{"$f":"IF(boodschappen!D3=\"\",\"\",boodschappen!D3)","v":""}]
[null,null,"Kandidaatnummer:",{"$f":"IF(boodschappen!D4=\"\",\"\",boodschappen!D4)","v":""}]
[]
[null,null,"materiaallijst"]
[]
[null,null,"bereiding nasi goreng"]
[null,null,"pannen"]
[null,null,"braadpan"]
[null,null,"hapjespan "]
[null,null,"koekenpan"]
[null,null,"kookpan"]
[null,null,"wok"]
[null,null,"bestek "]
[null,null,"eetlepel"]
[null,null,"theelepel"]
[null,null,"vork "]
[null,null,"mes"]
[null,null,"messen"]
[null,null,"aardappelschilmes"]
[null,null,"broodmes"]
[null,null,"dunschiller"]
[null,null,"koksmes"]
[null,null,"kookgereedschap"]
[null,null,"bakspatel"]
[null,null,"garde"]
[null,null,"opscheplepel"]
[null,null,"snijplanken"]
[null,null,"snijplank blauw"]
[null,null,"snijplank geel"]
[null,null,"snijplank groen"]
[null,null,"snijplank rood"]
[null,null,"servies"]
[null,null,"bord (plat)"]
[null,null,"mok"]
[null,null,"soepbord"]
[null,null,"overig "]
[null,null,"citruspers"]
[null,null,"dienblad"]
[null,null,"handmixer met verschillende haken"]
[null,null,"knoflookpers"]
[null,null,"kom"]
[null,null,"maatbeker"]
[null,null,"rasp"]
[null,null,"servet"]
[null,null,"vergiet"]
[null,null,"weegschaal "]

{"sheet":"printblad","index":2,"n_rows":48,"n_cols":6,"rows_kept":48,"cut":false,"hidden":true,"merged":[[25,2,25,3],[26,2,26,3],[27,2,27,3],[29,2,29,3],[30,2,30,3],[31,2,31,3],[32,2,32,3],[34,2,34,3],[35,2,35,3],[36,2,36,3],[47,2,47,3],[38,2,38,3],[39,2,39,3],[40,2,40,3],[41,2,41,3],[42,2,42,3],[43,2,43,3],[44,2,44,3],[45,2,45,3],[46,2,46,3],[20,2,20,3],[21,2,21,3],[22,2,22,3],[23,2,23,3],[12,2,12,3],[13,2,13,3],[15,2,15,3],[16,2,16,3],[17,2,17,3],[18,2,18,3],[2,3,2,6],[3,3,3,6],[9,2,9,3],[10,2,10,3],[11,2,11,3],[5,2,5,6],[7,2,7,6]]}
[]
[]
[null,null,{"$f":"materialen!C3","v":"Kandidaatnaam:"},{"$f":"materialen!D3","v":""}]
[null,null,{"$f":"materialen!C4","v":"Kandidaatnummer:"},{"$f":"materialen!D4","v":""}]
[]
[null,null,{"$f":"materialen!C6","v":"materiaallijst"}]
[]
[null,null,"bereiding nasi goreng"]
[null,null,{"$f":"materialen!C9","v":"pannen"}]
[null,null,{"$f":"materialen!C10","v":"braadpan"},null,null,{"$f":"materialen!F10","v":0}]
[null,null,{"$f":"materialen!C11","v":"hapjespan "},null,null,{"$f":"materialen!F11","v":0}]
[null,null,{"$f":"materialen!C12","v":"koekenpan"},null,null,{"$f":"materialen!F12","v":0}]
[null,null,{"$f":"materialen!C13","v":"kookpan"},null,null,{"$f":"materialen!F13","v":0}]
[null,null,{"$f":"materialen!C14","v":"wok"},null,null,{"$f":"materialen!F14","v":0}]
[null,null,{"$f":"materialen!C15","v":"bestek "},null,null,{"$f":"materialen!F15","v":0}]
[null,null,{"$f":"materialen!C16","v":"eetlepel"},null,null,{"$f":"materialen!F16","v":0}]
[null,null,{"$f":"materialen!C17","v":"theelepel"},null,null,{"$f":"materialen!F17","v":0}]
[null,null,{"$f":"materialen!C18","v":"vork "},null,null,{"$f":"materialen!F18","v":0}]
[null,null,{"$f":"materialen!C19","v":"mes"},null,null,{"$f":"materialen!F19","v":0}]
[null,null,{"$f":"materialen!C20","v":"messen"},null,null,{"$f":"materialen!F20","v":0}]
[null,null,{"$f":"materialen!C21","v":"aardappelschilmes"},null,null,{"$f":"materialen!F21","v":0}]
[null,null,{"$f":"materialen!C22","v":"broodmes"},null,null,{"$f":"materialen!F22","v":0}]
[null,null,{"$f":"materialen!C23","v":"dunschiller"},null,null,{"$f":"materialen!F23","v":0}]
[null,null,{"$f":"materialen!C24","v":"koksmes"},null,null,{"$f":"materialen!F24","v":0}]
[null,null,{"$f":"materialen!C25","v":"kookgereedschap"},null,null,{"$f":"materialen!F25","v":0}]
[null,null,{"$f":"materialen!C26","v":"bakspatel"},null,null,{"$f":"materialen!F26","v":0}]
[null,null,{"$f":"materialen!C27","v":"garde"},null,null,{"$f":"materialen!F27","v":0}]
[null,null,{"$f":"materialen!C28","v":"opscheplepel"},null,null,{"$f":"materialen!F28","v":0}]
[null,null,{"$f":"materialen!C29","v":"snijplanken"},null,null,{"$f":"materialen!F29","v":0}]
[null,null,{"$f":"materialen!C30","v":"snijplank blauw"},null,null,{"$f":"materialen!F30","v":0}]
[null,null,{"$f":"materialen!C31","v":"snijplank geel"},null,null,{"$f":"materialen!F31","v":0}]
[null,null,{"$f":"materialen!C32","v":"snijplank groen"},null,null,{"$f":"materialen!F32","v":0}]
[null,null,{"$f":"materialen!C33","v":"snijplank rood"},null,null,{"$f":"materialen!F33","v":0}]
[null,null,{"$f":"materialen!C34","v":"servies"},null,null,{"$f":"materialen!F34","v":0}]
[null,null,{"$f":"materialen!C35","v":"bord (plat)"},null,null,{"$f":"materialen!F35","v":0}]
[null,null,{"$f":"materialen!C36","v":"mok"},null,null,{"$f":"materialen!F36","v":0}]
[null,null,{"$f":"materialen!C37","v":"soepbord"},null,null,{"$f":"materialen!F37","v":0}]
[null,null,{"$f":"materialen!C38","v":"overig "},null,null,{"$f":"materialen!F38","v":0}]
[null,null,{"$f":"materialen!C39","v":"citruspers"},null,null,{"$f":"materialen!F39","v":0}]
[null,null,{"$f":"materialen!C40","v":"dienblad"},null,null,{"$f":"materialen!F40","v":0}]
[null,null,{"$f":"materialen!C41","v":"handmixer met verschillende haken"},null,null,{"$f":"materialen!F41","v":0}]
[null,null,{"$f":"materialen!C42","v":"knoflookpers"},null,null,{"$f":"materialen!F42","v":0}]
[null,null,{"$f":"materialen!C43","v":"kom"},null,null,{"$f":"materialen!F43","v":0}]
[null,null,{"$f":"materialen!C44","v":"maatbeker"},null,null,{"$f":"materialen!F44","v":0}]
[null,null,{"$f":"materialen!C45","v":"rasp"},null,null,{"$f":"materialen!F45","v":0}]
[null,null,{"$f":"materialen!C46","v":"servet"},null,null,{"$f":"materialen!F46","v":0}]
[null,null,{"$f":"materialen!C47","v":"vergiet"},null,null,{"$f":"materialen!F47","v":0}]
[null,null,{"$f":"materialen!C48","v":"weegschaal "},null,null,{"$f":"materialen!F48","v":0}]